Cogmind - Beta 16.1 *** ADVENTURER MODE // 2026.03.18 @ 04:32:25 Player: Ms. V3-11A Result: Destroyed by YI-UF0 with YI-UF0's Doublenader Performance ------------- Evolutions (0) 0 Regions Visited (4) 800 Robots Destroyed (15) 75 Value Destroyed (236) 236 Prototype IDs (4) 80 Alien Tech Used (0) 0 Bonus (-120) -120 TOTAL SCORE: 1071 Bonus ------- Follower Combat Kills 35 Friendly Fire -155 Cogmind --------- Core Integrity 0/250 Matter 291/300 Energy 50/100 System Corruption 2% Temperature Cool (10) Movement Treading (240) Ox1 Location -9/Mines Parts ------- > --- POWER (1) -------- (None) > --- PROPULSION (2) --- Light Treads > --- UTILITY (2) ------ Large Storage Unit Structural Scanner > --- WEAPON (2) ------- EM Pulse Gun Light Assault Rifle > --- INVENTORY (15) --- Light Ion Engine Light Treads Improved Heat Sink Huge Storage Unit Large Battery (200) High-capacity Matter Pod (200) High-capacity Matter Pod (200) Seismic Detector Grenade Launcher Heavy Explosive Trap Heavy Explosive Trap Heavy Explosive Trap Peak State ------------ > --- POWER ------------ Ion Engine > --- PROPULSION ------- Light Treads Light Treads > --- UTILITY ---------- Large Storage Unit Seismic Detector > --- WEAPON ----------- Light Assault Rifle Light Assault Rifle > --- INVENTORY -------- Light Ion Engine Light Treads Improved Heat Sink Large Storage Unit Large Matter Pod High-capacity Matter Pod EM Pulse Gun Grenade Launcher [Rating: 8] Favorites ----------- Power Ion Engine Engine Ion Engine Propulsion Light Treads Treads Light Treads Leg Aluminum Leg Utility Large Storage Unit Device Structural Scanner Storage Large Storage Unit Weapon Light Assault Rifle Energy Gun EM Pulse Gun Ballistic Gun Light Assault Rifle Build | -11 -10 -10 -10 -9 ------- Run | Yrd Mat Min Exi Min Slots Evolved . | . . . . . Power . | . . . . . Propulsion . | . . . . . Utility . | . . . . . Weapon . | . . . . . Parts Attached 9 | 2 3 2 1 1 Power 1 | . . 1 . . Engine 1 | . . 1 . . Core . | . . . . . Reactor . | . . . . . Propulsion 3 | 2 . . 1 . Treads 3 | 2 . . 1 . Leg . | . . . . . Wheel . | . . . . . Hover . | . . . . . Flight . | . . . . . Utility 3 | . 2 1 . . Device 2 | . 1 1 . . Storage 1 | . 1 . . . Processor . | . . . . . Hackware . | . . . . . Protection . | . . . . . Artifact . | . . . . . Weapon 2 | . 1 . . 1 Energy Gun 1 | . . . . 1 Energy Cannon . | . . . . . Ballistic Gun 1 | . 1 . . . Ballistic Cannon . | . . . . . Launcher . | . . . . . Special Weapon . | . . . . . Impact Weapon . | . . . . . Slashing Weapon . | . . . . . Piercing Weapon . | . . . . . Special Melee Weapon . | . . . . . Unidentified Prototypes . | . . . . . Parts Lost 4 | . . 1 . 3 Power 2 | . . 1 . 1 Propulsion 1 | . . . . 1 Utility . | . . . . . Weapon 1 | . . . . 1 Highest Loss Streak 3 | . . 1 . 3 To Critical Strikes . | . . . . . Average Backups 8 | 3 6 10 10 10 Power 1 | 1 1 1 1 1 Propulsion . | 1 . 1 1 1 Utility 4 | . 2 6 6 6 Weapon 1 | 1 1 2 2 2 Tool/Special . | . . . . . Unused Backups 10 | . . . 4 6 Power . | . . . . . Propulsion . | . . . . . Utility 9 | . . . 4 5 Weapon 1 | . . . . 1 Tool/Special . | . . . . . Average Slot Usage (%) 97 | . 94 98 100 97 Engine 13 | . 14 12 14 12 Treads 27 | . 28 28 28 26 Device 11 | . 8 14 14 14 Storage 14 | . 14 14 14 14 Energy Gun 1 | . 4 . . 1 Ballistic Gun 26 | . 23 28 28 26 Peak Build Rating 8 | 6 8 8 8 8 Average Rating 7 | 5 6 7 8 7 On Entrance 7 | 6 6 8 8 8 Avg Prop Armor Cover (%) . | . . . . . Naked Turns . | . . . . . Heaviest Build 33 | 13 33 28 28 28 Greatest Support 40 | 40 40 40 40 40 Greatest Overweight (x) . | . . . . . Average Overweight (x) . | . . . . . Largest Inventory Capacity 15 | 8 15 15 15 15 Average Capacity 14 | 8 14 15 15 15 Most Carried 15 | 5 10 15 15 14 Average Carried 10 | 3 6 12 14 13 Final Capacity 15 | 8 15 15 15 15 Final Carried 15 | 2 10 15 14 12 Class Distribution -------------------- 100% | Mutant Dominant Class ---------------- Mutant | -10/Materials Mutant | -10/Mines Mutant | -10/Exiles Mutant | -9/Mines Resources | -11 -10 -10 -10 -9 ----------- Run | Yrd Mat Min Exi Min Matter Collected 999 | 200 242 139 418 . Remotely . | . . . . . Salvage Created 458 | . 359 99 . . Parts 25 | . 23 2 . . Haulers Intercepted 1 | . 1 . . . Recyclers Shooed . | . . . . . Parts Field Recycled . | . . . . . Retrieved Matter . | . . . . . Parts Self-Destructed . | . . . . . Prevented . | . . . . . Parts Restored . | . . . . . Kills | -11 -10 -10 -10 -9 ------- Run | Yrd Mat Min Exi Min Combat Hostiles Destroyed 11 | . 10 1 . . Guns 11 | . 10 1 . . Classes Destroyed 4 | . 4 . . . Worker 2 | . 1 1 . . Hauler 1 | . 1 . . . Swarmer 7 | . 6 1 . . Grunt 4 | . 4 . . . Thug 1 | . . 1 . . Best Kill Streak 4 | . 4 2 . . Combat Bots Only 3 | . 3 1 . . Max Kills in Single Turn 1 | . 1 1 . . Gunslinging . | . . . . . Exploded . | . . . . . Melee . | . . . . . Uniques/NPCs Destroyed . | . . . . . Combat | -11 -10 -10 -10 -9 -------- Run | Yrd Mat Min Exi Min Hostile Shots Fired 106 | . 76 18 . 12 Missed 32 | . 22 4 . 6 Hits 74 | . 54 14 . 6 Projectile 74 | . 54 14 . 6 AOE 12 | . . . . 12 Critical Strikes 1 | . 1 . . . Damage Taken 859 | . 492 86 . 281 Core 253 | . 146 18 . 89 Absorbed by Shields . | . . . . . Ignored by Resistances 260 | . 155 28 . 77 Core Remaining (%) 100 | 100 . . . . Volleys Fired 63 | . 40 17 . 6 Largest 2 | . 2 2 . 2 Hottest 60 | . 60 40 . 60 Shots Fired 125 | . 80 33 . 12 Gun 125 | . 80 33 . 12 Cannon . | . . . . . Launcher . | . . . . . Special . | . . . . . Kinetic 115 | . 73 33 . 9 Thermal . | . . . . . Explosive . | . . . . . Electromagnetic 10 | . 7 . . 3 Robot Hit Streak 20 | . 20 20 . 4 Robot Miss Streak 3 | . 3 2 . 1 Penetration Max . | . . . . . Secondary Targets 4 | . 3 1 . . Max Gunslinging Chain 1 | . 1 1 . . Shots Hit Robots 98 | . 65 24 . 9 Core Hits 38 | . 25 10 . 3 Critical Kills 1 | . 1 . . . Critical Parts Destroyed . | . . . . . Critical Strikes 1 | . 1 . . . Destroy 1 | . 1 . . . Melee Attacks . | . . . . . Impact . | . . . . . Slashing . | . . . . . Piercing . | . . . . . Sneak Attacks . | . . . . . Combat Hostiles . | . . . . . Follow-up Attacks . | . . . . . Damage Inflicted 846 | . 569 202 . 75 Guns 844 | . 569 202 . 73 Cannons . | . . . . . Explosions . | . . . . . Melee . | . . . . . Ramming 2 | . . . . 2 Kinetic 743 | . 490 202 . 51 Thermal . | . . . . . Explosive . | . . . . . Electromagnetic 101 | . 79 . . 22 Impact . | . . . . . Slashing . | . . . . . Piercing . | . . . . . Highest Corruption 2 | . 2 2 2 2 Average Corruption 2 | . 2 2 2 2 Corruption Purged . | . . . . . Corruption Blocked . | . . . . . Effects 29 | . 8 9 11 1 Message Errors 6 | . 1 1 4 . Matter Fused 10 | . 4 2 4 . Heat Flow Errors 1 | . . 1 . . Energy Discharges 4 | . 1 1 1 1 Data Loss (minor) 5 | . 1 2 2 . Data Loss (major) 1 | . 1 . . . Alerts 1 | . . 1 . . Weapon Failures 1 | . . 1 . . Overload Shots . | . . . . . Overflow Damage . | . . . . . Projectiles . | . . . . . Explosions . | . . . . . Melee . | . . . . . Knockbacks . | . . . . . Impact . | . . . . . Kinetic . | . . . . . Secondary . | . . . . . Self-Inflicted Damage . | . . . . . Shots . | . . . . . Rammed 1 | . . . . 1 Targets Rammed 1 | . . . . 1 Kicked . | . . . . . Crushed . | . . . . . Highest Temperature 256 | . 40 256 . 10 Average Temperature 35 | . 14 133 . 7 Received Heat Transfer 207 | . 207 . . . Siege Activations . | . . . . . Martial Activations . | . . . . . Shielding Activations . | . . . . . Robots Disrupted . | . . . . . Combat Hostiles . | . . . . . Robots Corrupted . | . . . . . Combat Hostiles . | . . . . . Parts Fried . | . . . . . Impact Corruptions . | . . . . . Robots Melted . | . . . . . Combat Hostiles . | . . . . . Parts Melted . | . . . . . Heat Transferred . | . . . . . Parts Sabotaged . | . . . . . Parts Stolen . | . . . . . Parts Stripped . | . . . . . Power Chain Reactions . | . . . . . Alert | -11 -10 -10 -10 -9 ------- Run | Yrd Mat Min Exi Min Maximum Alert Level . | . . . . . Low Security (%) 100 | 100 100 100 . 100 Level 1 . | . . . . . Level 2 . | . . . . . Level 3 . | . . . . . Level 4 . | . . . . . Level 5 . | . . . . . High Security . | . . . . . Max Security . | . . . . . Peak Influence 103 | . 95 103 . . Initial . | . . . . . Average 14 | . 14 17 . . Influence Increases 447 | . 294 153 . . Destroy 0b10 Robot/C 320 | . 200 120 . . Destroy 0b10 Robot/NC 15 | . 10 5 . . Destroy Leader 62 | . 42 20 . . Allied During Kill 8 | . . 8 . . Successful Hack 42 | . 42 . . . Influence Decreases 447 | . 294 153 . . Time Decay 427 | . 294 133 . . Lost Ally 20 | . . 20 . . Squads Dispatched . | . . . . . Investigation . | . . . . . Extermination . | . . . . . Reinforcement . | . . . . . Assault . | . . . . . Garrison . | . . . . . Intercept . | . . . . . Searches Triggered . | . . . . . Construction Impeded . | . . . . . Haulers Reinforced . | . . . . . Active Scanning Responses . | . . . . . Cargo Convoy Interrupts . | . . . . . Stealth | -11 -10 -10 -10 -9 --------- Run | Yrd Mat Min Exi Min Distress Signals 2 | . 1 1 . . Communications Jammed . | . . . . . Distress Signals . | . . . . . Times Spotted 29 | . 22 6 . 1 Peak Tracking Total 4 | . 4 3 . 1 Tactical Retreats . | . . . . . Traps | -11 -10 -10 -10 -9 ------- Run | Yrd Mat Min Exi Min Traps Triggered 2 | . 2 . . . Indirectly . | . . . . . Trap Hack Attempts . | . . . . . Triggered . | . . . . . Disarmed . | . . . . . Reprogrammed . | . . . . . Reused . | . . . . . Traps Extracted . | . . . . . Installed 1 | . . . . 1 Triggered . | . . . . . Most Traps Carried 4 | . . 4 4 4 Machines | -11 -10 -10 -10 -9 ---------- Run | Yrd Mat Min Exi Min Machines Disabled . | . . . . . Max in Single Turn . | . . . . . Machines Repaired . | . . . . . Machines Dismantled . | . . . . . Machines Sabotaged . | . . . . . Overloaded Fab Kills . | . . . . . Hacking | -11 -10 -10 -10 -9 --------- Run | Yrd Mat Min Exi Min Machines Accessed 8 | . 7 . 1 . Terminals 7 | . 7 . . . Fabricators . | . . . . . Repair Stations . | . . . . . Recycling Units . | . . . . . Scanalyzers . | . . . . . Garrison Access . | . . . . . Total Hacks 31 | . 27 . 4 . Successful 20 | . 16 . 4 . Failed 10 | . 10 . . . Catastrophic 1 | . 1 . . . Database Lockouts 1 | . 1 . . . Manual 23 | . 23 . . . Terminals 27 | . 27 . . . Fabricators . | . . . . . Repair Stations . | . . . . . Recycling Units . | . . . . . Scanalyzers . | . . . . . Garrison Access . | . . . . . Terminal Hacks 12 | . 8 . 4 . Record 4 | . . . 4 . Part Schematic 3 | . 3 . . . Robot Analysis 1 | . 1 . . . Prototype ID Bank 3 | . 3 . . . Terminal Index 1 | . 1 . . . Fabricator Hacks . | . . . . . Repair Station Hacks . | . . . . . Recycling Unit Hacks . | . . . . . Scanalyzer . | . . . . . Garrison Access Hacks . | . . . . . Unauthorized Hacks 8 | . 8 . . . Terminals 8 | . 8 . . . Botnet 3 | . 3 . . . Skim 5 | . 5 . . . Fabricators . | . . . . . Repair Stations . | . . . . . Recycling Units . | . . . . . Scanalyzers . | . . . . . Garrison Access . | . . . . . Data Cores Recovered . | . . . . . Used . | . . . . . Hacking Detections 6 | . 6 . . . Full Trace Events . | . . . . . Feedback Events . | . . . . . Feedback Blocked . | . . . . . Robot Schematics Acquired . | . . . . . Robots Built . | . . . . . Authchips . | . . . . . Time . | . . . . . Total Robot Build Rating . | . . . . . Part Schematics Acquired 3 | . 3 . . . Parts Built . | . . . . . Authchips . | . . . . . Time . | . . . . . Total Part Build Rating . | . . . . . Part Studies Acquired . | . . . . . Parts Repaired . | . . . . . Time . | . . . . . Parts Recycled . | . . . . . Recycled Matter . | . . . . . Retrieved Matter . | . . . . . Retrieved Components . | . . . . . Parts Scanalyzed . | . . . . . Part Schematics Acquired . | . . . . . Parts Damaged . | . . . . . Bothacking | -11 -10 -10 -10 -9 ------------ Run | Yrd Mat Min Exi Min Used RIF Installer . | . . . . . Robots Hacked . | . . . . . Non-combat . | . . . . . Combat . | . . . . . Robot Hacks Applied . | . . . . . Relay Couplers Released . | . . . . . Fabnet Peak Effective % . | . . . . . Robots Rewired . | . . . . . Allies Hacked . | . . . . . Hacks Repelled . | . . . . . Allies | -11 -10 -10 -10 -9 -------- Run | Yrd Mat Min Exi Min Total Allies 3 | . . 3 . . Largest Group 3 | . . 3 2 2 Highest-Rated Group 40 | . . 40 32 32 Highest-Rated Ally 16 | . . 16 16 16 Total Orders . | . . . . . Ally Attacks 25 | . . 23 . 2 Total Damage 163 | . . 163 . . Kills 5 | . . 5 . . Allies Corrupted . | . . . . . Allies Melted . | . . . . . Intel | -11 -10 -10 -10 -9 ------- Run | Yrd Mat Min Exi Min Active Infowar (turns) 2548 | . 817 800 803 128 Structural 1638 | . . 707 803 128 Seismic 910 | . 817 93 . . Robot Analysis Total 1 | . 1 . . . Derelict Logs Recovered 1 | . . 1 . . Drone Launches . | . . . . . Drone Recoveries . | . . . . . Exploration | -11 -10 -10 -10 -9 ------------- Run | Yrd Mat Min Exi Min Turns Passed 3056 | 10 1315 800 803 128 Spaces Moved 1587 | 4 664 400 488 31 Core . | . . . . . Treads 1586 | 3 664 400 488 31 Legs 1 | 1 . . . . Wheels . | . . . . . Hover . | . . . . . Flight . | . . . . . Fastest Speed 120 | 120 160 160 160 160 Average Speed 159 | 150 160 160 160 160 Slowest Speed 160 | 160 160 160 160 160 Overloaded Moves . | . . . . . Propulsion Burnouts . | . . . . . Robots Hopped . | . . . . . Potential Cave-ins . | . . . . . Cave-ins Triggered . | . . . . . Exploration Rate (%) 54 | 2 94 75 90 10 Regions Visited 4 Branch Regions 3 Pre-discovered Areas 2 | . 1 . 1 . Known Exits Taken . | . . . . . Unknown Exits Taken 4 | 1 1 1 1 . Scrap Searched 1 | . . 1 . . Spaces Dug . | . . . . . Terrain Destroyed . | . . . . . Melee . | . . . . . Projectile . | . . . . . AOE . | . . . . . Terrain Rammed . | . . . . . Walls Destroyed . | . . . . . Machines Disabled . | . . . . . Actions | -11 -10 -10 -10 -9 --------- Run | Yrd Mat Min Exi Min Total 2006 | 11 850 532 514 99 Wait 321 | . 135 109 19 58 Move 1583 | 3 663 399 487 31 Hop . | . . . . . Pick Up 17 | 1 8 5 3 . Fast Attach 3 | . 2 1 . . Attach 3 | 2 . . . 1 Detach . | . . . . . Swap 3 | . 1 1 1 . Drop 11 | 5 1 . 4 1 Fire 63 | . 40 17 . 6 Melee . | . . . . . Ram . | . . . . . Kick . | . . . . . Crush 1 | . . . . 1 Escape Stasis . | . . . . . Rewire . | . . . . . Trap 1 | . . . . 1 Miscellaneous . | . . . . . Route ------- -11/Scrapyard -10/Materials (discovered 5 exits: [*Mat x3] / [*Min] / *Sub) -10/Mines (discovered 4 exits: [*Mat x2] / *Exi / *Sub) -10/Exiles (discovered 2 exits: [*Min x2]) -9/Mines History --------- Turn | Location | Event 3 | -11/Scrapyard | Discovered new exit (range 1) 11 | -11/Scrapyard | Entered Materials 155 | -10/Materials | Discovered new exit (range 8) 306 | -10/Materials | Build established: Mutant 321 | -10/Materials | Discovered new exit (range 9) 434 | -10/Materials | Discovered new exit (range 15) 604 | -10/Materials | Discovered new exit (range 15) 832 | -10/Materials | Discovered new exit (range 15) 893 | -10/Materials | Central database locked down 1049 | -10/Materials | Core integrity fell below 50% 1055 | -10/Materials | Learned 2 Storage zone layouts 1119 | -10/Materials | Learned Storage stockpile data 1173 | -10/Materials | Loaded intel: 31 non-interactive machine locations 1216 | -10/Materials | Learned location of Recycling (-8) 1270 | -10/Materials | Learned location of 1 exit from Recycling 1302 | -10/Materials | Learned 2 Mines zone layouts 1326 | -10/Materials | Entered Mines 1327 | -10/Mines | Identified exit to Subcaves 1356 | -10/Mines | Met a Derelict bent on vengeance 1465 | -10/Mines | Discovered new exit (range 3) 1493 | -10/Mines | Assisted by bots powering up and referring to "LRC-V3" 1501 | -10/Mines | Discovered new exit (range 7) 1677 | -10/Mines | Found a hidden stash of uninstalled traps 1835 | -10/Mines | Learned Materials non-interactive machine intel 2009 | -10/Mines | Deemed a non-threat by the Exiles lab entrance 2009 | -10/Mines | Discovered new exit (range 5) 2126 | -10/Mines | Entered Exiles 2126 | -10/Exiles | Accompanied by 2 allies 2157 | -10/Exiles | Discovered new exit (range 15) 2202 | -10/Exiles | Met 8R-AWN 2227 | -10/Exiles | Met EX-HEX 2293 | -10/Exiles | Met EX-DEC 2320 | -10/Exiles | Learned location of Zion (-7) 2370 | -10/Exiles | Met EX-BIN 2587 | -10/Exiles | Visited The Gauntlet 2870 | -10/Exiles | Discovered new exit (range 14) 2929 | -10/Exiles | Entered Mines 2929 | -9/Mines | Accompanied by 2 allies 3046 | -9/Mines | Core integrity fell below 20% 3057 | -9/Mines | Destroyed by YI-UF0 with YI-UF0's Doublenader Last Messages --------------- GOAL=ESCAPE 02930_ K-01 Serf collects debris. 02948_ YI-UF0 mumbles something. 02954_ YI-UF0: "BOOM TO YOU TOO!" 02954_ Dropped Heavy Explosive Trap. 02955_ Installed Heavy Explosive Trap. 02961_ K-01 Serf collects debris. 03006_ Slammed into K-01 Serf. 03011_ K-01 Serf destroyed. 03041_ YI-UF0: "BADABOOM!" 03041_ Trooper 1a destroyed. 03043_ Trooper 1b destroyed. 03043_ Lgt. Treads destroyed. 03044_ The unstable cave ceiling collapses. 03047_ Lgt. Assault Rifle destroyed. 03048_ The unstable cave ceiling collapses. 03049_ Ion Engine destroyed. 03050_ The unstable cave ceiling collapses. 03055_ System corrupted: Energy discharge (-31). 03055_ The unstable cave ceiling collapses. Map ----- +----------------------------------------------------+ | | | | | | | | | | | | | | | | | | | | | ???????????????????????????????????? | | ??????????????????##############???? | | ??????????????????##############???? | | ??????????????????## ##??? | | ??????????????????## """ ##??? | | ??????????????????## """ ##??? | | ??????????????????## """ ##??? | | ??????????????????## ##??? | | ??????????????????#### ## ### ###??? | | ???????????? ?????#### ## ### ###??? | | ???????????? ? #### ## ### ##???? | | ????????## ##### ## ### ###??? | | ???????### # ####?? | | ???????### # ###?? | | ??????### # # ##?? | | ??????## g @# ##?? | | ??????## ##?? | | ??????## # ##?? | | ??????## ### ####?? | | ????????????? ## # # ####?? | | ??????????????? # ######???? | | ????????????? ######???? | | ????????????? # ? ??????????? | | ????????????? #### ? ??????????? | | ?????????????####### ??????????? | | ????????????????##### ??????????? | | ??????????????????### ??????????? | | ????????????????????## ???????????? | | ????????????????????## ???????????? | | ????????????????????# ???????????? | | ??????????????????????? ???????????? | | ???????????????????????????????????? | | ???????????????????????????????????? | | ???????????????????????????????????? | | ???????????????????????????????????? | | ???????????????????????????????????? | | ???????????????????????????????????? | | ???????????????????????????????????? | | ???????????????????????????????????? | | ???????????????????????????????????? | +----------------------------------------------------+ Best States ------------- Heat Dissipation 25 Energy Generation 10 Energy Capacity 250 Matter Stores 300 Matter Capacity 300 Sight Range 16 Terrain Scan Density 10 Resistance: KI 20 Resistance: TH 20 Resistance: EX 20 Resistance: EM 20 Resistance: I 20 Resistance: S 20 Resistance: P 20 Evasion (%) 40 Recoil Reduction 2 Offensive Hacking 10 Item Schematics ----------------- Lgt. Treads | -10/Materials | Hacked Lgt. Armor Plating | -10/Materials | Hacked Ion Engine | -10/Materials | Hacked Robot Schematics ------------------ None Fabricated ------------ Nothing Repaired ---------- Nothing Studied --------- None Alien Tech Used ----------------- None Achievements -------------- None Challenges ------------ None Game ------ Seed SuspensionSensorManipulator Manual? 0 Play Time 00:15:53 Cumulative 512.0 hours Start 2026.03.18 @ 04:10:44 End 2026.03.18 @ 04:32:25 Sessions 1 Manual Loads 0 Difficulty Adventurer Special Mode None Game No. 364 Rogue 63 Adventurer 275 Explorer 26 Win Type - Total 2 Types 2/0/0/0/0/0/0/0/0/0 Lore% 84 Gallery% 72 Achievement% 53 Wizard Run 0 Options --------- Layout 2 ASCII 0 Keyboard 0 Movement Mouse Keybinds 0 Fullscreen 0 Font 16/Cog Map View 64x51 Zoom Use 0% Tactical HUD 1 Map Filters NONE Filters BRIGHTNESS(115)|SATURATION(100)|LOW_CONTRAST(0,16,30) Steam 1 RUN: a40977d4-48c1-4dbe-b1d3-590152cafa23